[Event "*** Titled Tuesday 3|2 Blitz (Late)"]
[Site "Chess.com"]
[Date "2016.12.06"]
[Round "9"]
[White "LPSupi"]
[Black "Pierrebl"]
[Result "0-1"]
[WhiteElo "2584"]
[BlackElo "2458"]
[TimeControl "180+2"]
[EndTime "18:51:38 PST"]
[Termination "Pierrebl won by resignation"]

1. e4 {[%clk 0:03:00.2]} 1... c5 {[%clk 0:02:58.5]} 2. Nf3 {[%clk 0:03:00.5]}
2... Nc6 {[%clk 0:02:59]} 3. Bb5 {[%clk 0:02:59.8]} 3... g6 {[%clk 0:02:59.9]}
4. O-O {[%clk 0:03:00.2]} 4... Bg7 {[%clk 0:03:00.3]} 5. c3 {[%clk 0:02:57.9]}
5... Nf6 {[%clk 0:03:00.2]} 6. e5 {[%clk 0:02:57.9]} 6... Nd5 {[%clk 0:03:00.6]}
7. d4 {[%clk 0:02:59.5]} 7... cxd4 {[%clk 0:03:00.1]} 8. cxd4 {[%clk 0:03:01]}
8... O-O {[%clk 0:02:59.9]} 9. Nc3 {[%clk 0:03:00.4]} 9... Nxc3 {[%clk 0:03:00]}
10. bxc3 {[%clk 0:03:00.9]} 10... d6 {[%clk 0:03:01.5]} 11. exd6 {[%clk
0:03:01.2]} 11... Qxd6 {[%clk 0:03:03.4]} 12. a4 {[%clk 0:03:02]} 12... Bg4
{[%clk 0:03:01.6]} 13. h3 {[%clk 0:03:01.3]} 13... Bxf3 {[%clk 0:03:00.8]} 14.
Qxf3 {[%clk 0:03:01.7]} 14... Rac8 {[%clk 0:02:46.7]} 15. Ba3 {[%clk 0:02:55.8]}
15... Qc7 {[%clk 0:02:32.1]} 16. Bxc6 {[%clk 0:02:51.1]} 16... Qxc6 {[%clk
0:01:55]} 17. Qxc6 {[%clk 0:02:50.8]} 17... Rxc6 {[%clk 0:01:56.9]} 18. Bxe7
{[%clk 0:02:51.4]} 18... Rfc8 {[%clk 0:01:58.1]} 19. Bb4 {[%clk 0:02:52.5]}
19... Rc4 {[%clk 0:01:56.4]} 20. Rfb1 {[%clk 0:02:45.5]} 20... b6 {[%clk
0:01:48.7]} 21. a5 {[%clk 0:02:44.9]} 21... Bf8 {[%clk 0:01:41.8]} 22. axb6
{[%clk 0:02:35.8]} 22... axb6 {[%clk 0:01:43.5]} 23. Bxf8 {[%clk 0:02:35.5]}
23... Kxf8 {[%clk 0:01:43.5]} 24. Rxb6 {[%clk 0:02:36.4]} 24... Rxc3 {[%clk
0:01:44.9]} 25. Ra7 {[%clk 0:02:26.2]} 25... R8c7 {[%clk 0:01:38.2]} 26. Ra8+
{[%clk 0:02:18.1]} 26... Kg7 {[%clk 0:01:35.3]} 27. Rd8 {[%clk 0:02:18.1]} 27...
Rc1+ {[%clk 0:01:33.8]} 28. Kh2 {[%clk 0:02:18.1]} 28... R7c2 {[%clk 0:01:35.3]}
29. f3 {[%clk 0:02:00.3]} 29... Rf1 {[%clk 0:01:33.9]} 30. Kg3 {[%clk 0:01:37]}
30... Rff2 {[%clk 0:01:27.7]} 31. d5 {[%clk 0:01:37.2]} 31... Rxg2+ {[%clk
0:01:26]} 32. Kf4 {[%clk 0:01:37.8]} 32... Rcd2 {[%clk 0:01:22]} 33. d6 {[%clk
0:01:34.6]} 33... Rd4+ {[%clk 0:01:07.6]} 34. Ke5 {[%clk 0:01:12.9]} 34... Rgd2
{[%clk 0:01:07.3]} 35. Rb5 {[%clk 0:01:13.7]} 35... R4d3 {[%clk 0:00:52.6]} 36.
h4 {[%clk 0:01:05.7]} 36... Rxf3 {[%clk 0:00:44.8]} 37. Rbb8 {[%clk 0:01:00]}
37... Re3+ {[%clk 0:00:39.2]} 38. Kf4 {[%clk 0:00:59.8]} 38... Red3 {[%clk
0:00:39.5]} 39. Rb6 {[%clk 0:00:55.4]} 39... Rd5 {[%clk 0:00:36.6]} 40. Rd7
{[%clk 0:00:52.9]} 40... R2d4+ {[%clk 0:00:34.2]} 41. Kg3 {[%clk 0:00:50.6]}
41... h5 {[%clk 0:00:32.9]} 42. Rbb7 {[%clk 0:00:49.9]} 42... Rf5 {[%clk
0:00:30.5]} 43. Rd8 {[%clk 0:00:49.5]} 43... Rg4+ {[%clk 0:00:29.2]} 44. Kh3
{[%clk 0:00:50.5]} 44... Rf1 {[%clk 0:00:29.6]} 45. Kh2 {[%clk 0:00:43.6]} 45...
Rxh4+ {[%clk 0:00:28.9]} 46. Kg2 {[%clk 0:00:44.8]} 46... Rd1 {[%clk 0:00:29.4]}
47. d7 {[%clk 0:00:41.7]} 47... Rhd4 {[%clk 0:00:29.4]} 48. Kf2 {[%clk
0:00:41.8]} 48... h4 {[%clk 0:00:30.2]} 49. Ke2 {[%clk 0:00:42.4]} 49... h3
{[%clk 0:00:30.3]} 50. Rbb8 {[%clk 0:00:38.4]} 50... Rxd7 {[%clk 0:00:29.3]} 51.
Rg8+ {[%clk 0:00:40]} 51... Kf6 {[%clk 0:00:30.2]} 52. Rh8 {[%clk 0:00:39.9]}
52... h2 {[%clk 0:00:29]} 0-1

[Event "*** Titled Tuesday 3|2 Blitz (Late)"]
[Site "Chess.com"]
[Date "2016.12.06"]
[Round "9"]
[White "AlexanderL"]
[Black "viditchess"]
[Result "0-1"]
[WhiteElo "2585"]
[BlackElo "2643"]
[TimeControl "180+2"]
[EndTime "18:51:46 PST"]
[Termination "viditchess won by resignation"]

1. d4 {[%clk 0:03:02]} 1... Nf6 {[%clk 0:03:00.1]} 2. c4 {[%clk 0:03:03]} 2...
g6 {[%clk 0:03:01.3]} 3. Nc3 {[%clk 0:03:03.2]} 3... d5 {[%clk 0:03:02.5]} 4. e3
{[%clk 0:02:43]} 4... Bg7 {[%clk 0:03:03.1]} 5. Bd2 {[%clk 0:02:44]} 5... O-O
{[%clk 0:03:03.7]} 6. Qb3 {[%clk 0:02:44.5]} 6... e6 {[%clk 0:03:03.7]} 7. Nf3
{[%clk 0:02:42.6]} 7... b6 {[%clk 0:02:53.9]} 8. cxd5 {[%clk 0:02:41.6]} 8...
exd5 {[%clk 0:02:55]} 9. Be2 {[%clk 0:02:40.3]} 9... c5 {[%clk 0:02:55.9]} 10.
O-O {[%clk 0:02:40.9]} 10... Nc6 {[%clk 0:02:51.3]} 11. Rfd1 {[%clk 0:02:36.1]}
11... c4 {[%clk 0:02:20.6]} 12. Qc2 {[%clk 0:02:34.5]} 12... Bf5 {[%clk
0:02:18]} 13. Qc1 {[%clk 0:02:35.4]} 13... Rb8 {[%clk 0:02:07.2]} 14. Ne5 {[%clk
0:02:25.3]} 14... Qc8 {[%clk 0:02:08.5]} 15. Bf3 {[%clk 0:02:15]} 15... Rd8
{[%clk 0:02:05.5]} 16. b3 {[%clk 0:01:40.4]} 16... Nxe5 {[%clk 0:02:04.4]} 17.
dxe5 {[%clk 0:01:41.1]} 17... Ne4 {[%clk 0:02:05.7]} 18. Bxe4 {[%clk 0:01:30.2]}
18... dxe4 {[%clk 0:02:06.9]} 19. Nb5 {[%clk 0:01:12.3]} 19... cxb3 {[%clk
0:01:57.5]} 20. axb3 {[%clk 0:01:00]} 20... Bxe5 {[%clk 0:01:55.7]} 21. Ra2
{[%clk 0:00:56.4]} 21... Qxc1 {[%clk 0:01:19.4]} 22. Rxc1 {[%clk 0:00:57.2]}
22... Be6 {[%clk 0:01:14.5]} 23. Nd4 {[%clk 0:00:44.2]} 23... Bxd4 {[%clk
0:01:11.8]} 24. exd4 {[%clk 0:00:45.4]} 24... Rxd4 {[%clk 0:01:12.5]} 25. Be3
{[%clk 0:00:43.8]} 25... Rd7 {[%clk 0:01:12.5]} 26. Rca1 {[%clk 0:00:41.4]}
26... a5 {[%clk 0:01:11.8]} 27. Rb2 {[%clk 0:00:41.3]} 27... Rd3 {[%clk
0:01:10.3]} 28. b4 {[%clk 0:00:41.7]} 28... a4 {[%clk 0:01:10]} 29. Rd2 {[%clk
0:00:38.9]} 29... Rxd2 {[%clk 0:01:04.7]} 30. Bxd2 {[%clk 0:00:39.8]} 30... Rd8
{[%clk 0:00:45.5]} 31. Bg5 {[%clk 0:00:39.8]} 31... Rd3 {[%clk 0:00:42]} 32. Bf6
{[%clk 0:00:39.5]} 32... b5 {[%clk 0:00:38.9]} 33. h4 {[%clk 0:00:37]} 33... a3
{[%clk 0:00:38.6]} 34. Rc1 {[%clk 0:00:35.8]} 34... Bc4 {[%clk 0:00:39.1]} 35.
Re1 {[%clk 0:00:36.6]} 35... Rd6 {[%clk 0:00:40.2]} 36. Bc3 {[%clk 0:00:29.1]}
36... f5 {[%clk 0:00:40.6]} 37. Ra1 {[%clk 0:00:23.6]} 37... a2 {[%clk
0:00:41.7]} 38. Kh2 {[%clk 0:00:20.5]} 38... Rd3 {[%clk 0:00:41.8]} 39. Be5
{[%clk 0:00:20.8]} 39... Kf7 {[%clk 0:00:41.4]} 40. g3 {[%clk 0:00:20.9]} 40...
Ke6 {[%clk 0:00:42.6]} 41. Bh8 {[%clk 0:00:21.8]} 41... Rd2 {[%clk 0:00:38.1]}
42. Kg1 {[%clk 0:00:22.2]} 42... Kd5 {[%clk 0:00:38.3]} 43. Bg7 {[%clk
0:00:19.7]} 43... Bd3 {[%clk 0:00:37.1]} 44. Rc1 {[%clk 0:00:19.5]} 44... Bc4
{[%clk 0:00:33.1]} 45. Bh8 {[%clk 0:00:17.9]} 45... Rd3 {[%clk 0:00:33.5]} 46.
Bg7 {[%clk 0:00:13.1]} 46... Rb3 {[%clk 0:00:34.6]} 47. Rd1+ {[%clk 0:00:14.4]}
47... Bd3 {[%clk 0:00:35.7]} 48. Ra1 {[%clk 0:00:13.4]} 48... Bb1 {[%clk
0:00:34.5]} 49. Bf8 {[%clk 0:00:14.1]} 49... Kc4 {[%clk 0:00:35.4]} 50. Kf1
{[%clk 0:00:15.2]} 50... Rxb4 {[%clk 0:00:36.6]} 51. Ke2 {[%clk 0:00:14.6]}
51... Rb2+ {[%clk 0:00:37.4]} 52. Ke3 {[%clk 0:00:16.1]} 52... b4 {[%clk
0:00:38.9]} 53. Bg7 {[%clk 0:00:16.5]} 53... Rc2 {[%clk 0:00:40.1]} 54. h5
{[%clk 0:00:15.5]} 54... b3 {[%clk 0:00:40.9]} 55. hxg6 {[%clk 0:00:16.1]} 55...
hxg6 {[%clk 0:00:42.8]} 0-1

[Event "*** Titled Tuesday 3|2 Blitz (Late)"]
[Site "Chess.com"]
[Date "2016.12.06"]
[Round "9"]
[White "Zlatan56"]
[Black "GeorgMeier"]
[Result "1-0"]
[WhiteElo "2674"]
[BlackElo "2748"]
[TimeControl "180+2"]
[EndTime "18:52:11 PST"]
[Termination "Zlatan56 won by resignation"]

1. d4 {[%clk 0:03:02]} 1... e6 {[%clk 0:03:01.4]} 2. Nf3 {[%clk 0:03:03]} 2...
Nf6 {[%clk 0:03:02.7]} 3. e3 {[%clk 0:03:04]} 3... c5 {[%clk 0:03:02]} 4. c3
{[%clk 0:03:02.2]} 4... d5 {[%clk 0:03:02.2]} 5. Nbd2 {[%clk 0:03:02.1]} 5...
Nbd7 {[%clk 0:03:03.7]} 6. Bd3 {[%clk 0:03:01.2]} 6... Qc7 {[%clk 0:03:03.4]} 7.
O-O {[%clk 0:03:00.6]} 7... Be7 {[%clk 0:03:03.9]} 8. e4 {[%clk 0:02:58.6]} 8...
dxe4 {[%clk 0:03:05.1]} 9. Nxe4 {[%clk 0:02:59]} 9... O-O {[%clk 0:03:05.5]} 10.
Bg5 {[%clk 0:02:43.1]} 10... h6 {[%clk 0:03:01.7]} 11. Bh4 {[%clk 0:02:39.6]}
11... b6 {[%clk 0:03:01.8]} 12. dxc5 {[%clk 0:02:38.2]} 12... bxc5 {[%clk
0:02:55.3]} 13. Qe2 {[%clk 0:02:24.9]} 13... Bb7 {[%clk 0:02:53.2]} 14. Rfd1
{[%clk 0:02:24.4]} 14... Bd5 {[%clk 0:02:39]} 15. c4 {[%clk 0:02:19.3]} 15...
Bc6 {[%clk 0:02:39.3]} 16. Nxf6+ {[%clk 0:02:06.2]} 16... Bxf6 {[%clk
0:02:30.1]} 17. Bxf6 {[%clk 0:02:06.8]} 17... Nxf6 {[%clk 0:02:28.1]} 18. Ne5
{[%clk 0:02:08.2]} 18... Rfd8 {[%clk 0:02:21.2]} 19. Bc2 {[%clk 0:01:55.2]}
19... Kf8 {[%clk 0:02:05.6]} 20. Qe3 {[%clk 0:01:49.3]} 20... Be8 {[%clk
0:01:43.1]} 21. h3 {[%clk 0:01:21.5]} 21... Rab8 {[%clk 0:01:43.7]} 22. b3
{[%clk 0:01:21.7]} 22... Rbc8 {[%clk 0:01:44.2]} 23. Rxd8 {[%clk 0:01:17.7]}
23... Rxd8 {[%clk 0:01:45.4]} 24. Rd1 {[%clk 0:01:19.2]} 24... Rxd1+ {[%clk
0:01:38.4]} 25. Bxd1 {[%clk 0:01:21.1]} 25... Qd6 {[%clk 0:01:30.8]} 26. Bf3
{[%clk 0:01:14.1]} 26... Ke7 {[%clk 0:01:09.3]} 27. Kf1 {[%clk 0:01:13.3]} 27...
a5 {[%clk 0:01:00.6]} 28. Ke2 {[%clk 0:01:02.6]} 28... a4 {[%clk 0:00:58.7]} 29.
Nd3 {[%clk 0:00:56.8]} 29... axb3 {[%clk 0:00:58.5]} 30. axb3 {[%clk 0:00:56.4]}
30... Nd7 {[%clk 0:00:59.7]} 31. g3 {[%clk 0:00:54.8]} 31... Kd8 {[%clk
0:00:59.1]} 32. Kd2 {[%clk 0:00:47.6]} 32... f6 {[%clk 0:00:56.5]} 33. Kc3
{[%clk 0:00:43]} 33... Bf7 {[%clk 0:00:55.2]} 34. Qe4 {[%clk 0:00:32.2]} 34...
Ke7 {[%clk 0:00:46]} 35. Kc2 {[%clk 0:00:23.5]} 35... Qa6 {[%clk 0:00:25.9]} 36.
Qb7 {[%clk 0:00:22.3]} 36... Qa2+ {[%clk 0:00:23.8]} 37. Nb2 {[%clk 0:00:22.2]}
37... Bg6+ {[%clk 0:00:21.2]} 38. Be4 {[%clk 0:00:23.1]} 38... Bxe4+ {[%clk
0:00:20.3]} 39. Qxe4 {[%clk 0:00:25]} 39... Qa1 {[%clk 0:00:19.4]} 40. Nd3
{[%clk 0:00:23.2]} 40... Qa2+ {[%clk 0:00:19.9]} 41. Kc3 {[%clk 0:00:22.5]}
41... Qa1+ {[%clk 0:00:19.1]} 42. Kc2 {[%clk 0:00:23.1]} 42... Qa2+ {[%clk
0:00:18.2]} 43. Kc3 {[%clk 0:00:23.9]} 43... Qb1 {[%clk 0:00:17.9]} 44. Nxc5
{[%clk 0:00:06.6]} 44... Qa1+ {[%clk 0:00:06.3]} 45. Kb4 {[%clk 0:00:07.4]}
45... Nxc5 {[%clk 0:00:06.3]} 46. Kxc5 {[%clk 0:00:08.3]} 46... Qa5+ {[%clk
0:00:07.8]} 47. Kd4 {[%clk 0:00:08.7]} 47... Qd2+ {[%clk 0:00:09]} 48. Kc5
{[%clk 0:00:08.1]} 48... Qxf2+ {[%clk 0:00:08.8]} 49. Kc6 {[%clk 0:00:09.1]}
49... Qxg3 {[%clk 0:00:08.3]} 50. c5 {[%clk 0:00:09.8]} 50... f5 {[%clk
0:00:09.9]} 51. Qd4 {[%clk 0:00:09.5]} 51... Qg2+ {[%clk 0:00:09.1]} 52. Kc7
{[%clk 0:00:09.7]} 52... Qg3+ {[%clk 0:00:09.3]} 53. Qd6+ {[%clk 0:00:09.8]} 1-0

[Event "*** Titled Tuesday 3|2 Blitz (Late)"]
[Site "Chess.com"]
[Date "2016.12.06"]
[Round "9"]
[White "KNVB"]
[Black "chessking2151"]
[Result "1-0"]
[WhiteElo "2553"]
[BlackElo "2384"]
[TimeControl "180+2"]
[EndTime "18:53:03 PST"]
[Termination "KNVB won by resignation"]

1. d4 {[%clk 0:03:02]} 1... Nf6 {[%clk 0:03:00.8]} 2. c4 {[%clk 0:03:02.7]} 2...
c5 {[%clk 0:03:01.3]} 3. d5 {[%clk 0:03:03.9]} 3... b5 {[%clk 0:03:02.3]} 4.
cxb5 {[%clk 0:03:05.8]} 4... a6 {[%clk 0:03:03.4]} 5. bxa6 {[%clk 0:03:07.7]}
5... g6 {[%clk 0:03:03.6]} 6. Nc3 {[%clk 0:03:08.8]} 6... Bxa6 {[%clk
0:03:03.9]} 7. e4 {[%clk 0:03:10.5]} 7... Qa5 {[%clk 0:03:01.8]} 8. Bd3 {[%clk
0:03:00.8]} 8... Bg7 {[%clk 0:02:59.2]} 9. Ne2 {[%clk 0:03:01.4]} 9... O-O
{[%clk 0:02:55.9]} 10. O-O {[%clk 0:03:02.4]} 10... d6 {[%clk 0:02:57.2]} 11. h3
{[%clk 0:02:59.7]} 11... Nbd7 {[%clk 0:02:57.6]} 12. Bxa6 {[%clk 0:02:41.5]}
12... Qxa6 {[%clk 0:02:57.4]} 13. Qc2 {[%clk 0:02:42]} 13... Rfb8 {[%clk
0:02:57.1]} 14. Rb1 {[%clk 0:02:36.8]} 14... Ne8 {[%clk 0:02:45]} 15. Bg5 {[%clk
0:02:32.2]} 15... Kf8 {[%clk 0:02:39.3]} 16. b3 {[%clk 0:02:19.6]} 16... Ne5
{[%clk 0:02:39.7]} 17. Rfd1 {[%clk 0:02:11.2]} 17... c4 {[%clk 0:02:36]} 18. b4
{[%clk 0:02:08.8]} 18... Nd3 {[%clk 0:02:36.6]} 19. b5 {[%clk 0:02:06.3]} 19...
Qa3 {[%clk 0:02:30.4]} 20. Be3 {[%clk 0:01:53.2]} 20... Nb4 {[%clk 0:02:26.6]}
21. Qc1 {[%clk 0:01:39.4]} 21... Nxa2 {[%clk 0:02:02.6]} 22. Nxa2 {[%clk
0:01:38]} 22... Qxa2 {[%clk 0:01:59.9]} 23. Nd4 {[%clk 0:01:37.5]} 23... Qa4
{[%clk 0:01:45.2]} 24. b6 {[%clk 0:01:30.7]} 24... Rb7 {[%clk 0:01:43.9]} 25.
Nc6 {[%clk 0:01:30.2]} 25... Bf6 {[%clk 0:00:54.6]} 26. Bd4 {[%clk 0:01:27.6]}
26... Bxd4 {[%clk 0:00:51.5]} 27. Rxd4 {[%clk 0:01:29.5]} 27... Qa6 {[%clk
0:00:43.8]} 28. Qb2 {[%clk 0:00:31.6]} 28... Nf6 {[%clk 0:00:37.6]} 29. e5
{[%clk 0:00:17.4]} 29... dxe5 {[%clk 0:00:35.6]} 30. Nxe5 {[%clk 0:00:17.9]}
30... c3 {[%clk 0:00:28.9]} 31. Qxc3 {[%clk 0:00:09.3]} 31... Rxb6 {[%clk
0:00:29.1]} 32. Rxb6 {[%clk 0:00:07.8]} 32... Qxb6 {[%clk 0:00:31]} 33. Nc6
{[%clk 0:00:09.3]} 33... Qb1+ {[%clk 0:00:18.9]} 34. Kh2 {[%clk 0:00:10.2]}
34... Qf5 {[%clk 0:00:19.3]} 35. Rd3 {[%clk 0:00:03.1]} 35... Qd7 {[%clk
0:00:18.4]} 36. Qe5 {[%clk 0:00:02.7]} 36... Qd6 {[%clk 0:00:18.9]} 37. Qxd6
{[%clk 0:00:03.7]} 37... exd6 {[%clk 0:00:20.1]} 38. g4 {[%clk 0:00:03.8]} 38...
h6 {[%clk 0:00:20.6]} 39. f4 {[%clk 0:00:04]} 39... Ra2+ {[%clk 0:00:20.5]} 40.
Kg3 {[%clk 0:00:05]} 40... Ne4+ {[%clk 0:00:21.2]} 41. Kf3 {[%clk 0:00:06.5]}
41... Nd2+ {[%clk 0:00:20.8]} 42. Ke3 {[%clk 0:00:05.8]} 42... Nc4+ {[%clk
0:00:21.9]} 43. Kd4 {[%clk 0:00:06.8]} 43... Nb6 {[%clk 0:00:23.4]} 44. g5
{[%clk 0:00:03.3]} 44... hxg5 {[%clk 0:00:23.9]} 45. fxg5 {[%clk 0:00:05.2]}
45... Ra4+ {[%clk 0:00:25.1]} 46. Ke3 {[%clk 0:00:06.3]} 46... Rh4 {[%clk
0:00:26.1]} 47. Kf2 {[%clk 0:00:07]} 47... Kg7 {[%clk 0:00:27.5]} 48. Nd8 {[%clk
0:00:07.3]} 48... Rh5 {[%clk 0:00:27.7]} 49. Rf3 {[%clk 0:00:08.4]} 49... Nxd5
{[%clk 0:00:27.6]} 50. Rxf7+ {[%clk 0:00:07.3]} 50... Kg8 {[%clk 0:00:28.9]} 51.
Rd7 {[%clk 0:00:07.1]} 51... Nf4 {[%clk 0:00:29.7]} 52. h4 {[%clk 0:00:06.3]}
52... Rxh4 {[%clk 0:00:30.3]} 53. Kg3 {[%clk 0:00:07.5]} 53... Ng2 {[%clk
0:00:26.6]} 54. Kxg2 {[%clk 0:00:05.7]} 54... Rg4+ {[%clk 0:00:27.8]} 55. Kf3
{[%clk 0:00:07.2]} 55... Rxg5 {[%clk 0:00:28.4]} 56. Ne6 {[%clk 0:00:07.4]}
56... Re5 {[%clk 0:00:27.6]} 57. Nf4 {[%clk 0:00:07]} 57... Rg5 {[%clk 0:00:24]}
58. Ke4 {[%clk 0:00:05.4]} 58... d5+ {[%clk 0:00:23.3]} 59. Nxd5 {[%clk
0:00:05.6]} 59... Kf8 {[%clk 0:00:23.5]} 60. Nf4 {[%clk 0:00:04]} 60... Kg8
{[%clk 0:00:23.9]} 61. Ne6 {[%clk 0:00:03.8]} 61... Rg4+ {[%clk 0:00:25]} 62.
Ke5 {[%clk 0:00:04.8]} 62... Rg1 {[%clk 0:00:25.1]} 63. Rg7+ {[%clk 0:00:04]}
63... Kh8 {[%clk 0:00:25.4]} 64. Rb7 {[%clk 0:00:04.9]} 64... Re1+ {[%clk
0:00:25.4]} 65. Kf6 {[%clk 0:00:06.1]} 65... Rf1+ {[%clk 0:00:10.3]} 66. Kxg6
{[%clk 0:00:06.6]} 66... Rf8 {[%clk 0:00:08]} 67. Nxf8 {[%clk 0:00:06.9]} 67...
Kg8 {[%clk 0:00:08.9]} 68. Rb8 {[%clk 0:00:08.1]} 1-0

[Event "*** Titled Tuesday 3|2 Blitz (Late)"]
[Site "Chess.com"]
[Date "2016.12.06"]
[Round "9"]
[White "wonderfultime"]
[Black "gmshanmeruga"]
[Result "1/2-1/2"]
[WhiteElo "2677"]
[BlackElo "2352"]
[TimeControl "180+2"]
[EndTime "18:53:05 PST"]
[Termination "Game drawn by repetition"]

1. d4 {[%clk 0:02:57]} 1... Nf6 {[%clk 0:02:59.6]} 2. c4 {[%clk 0:02:57]} 2...
g6 {[%clk 0:02:59.2]} 3. Nc3 {[%clk 0:02:57.8]} 3... d5 {[%clk 0:02:59.1]} 4.
Bg5 {[%clk 0:02:53.4]} 4... Ne4 {[%clk 0:02:56.3]} 5. Bf4 {[%clk 0:02:54.7]}
5... c6 {[%clk 0:02:54.4]} 6. e3 {[%clk 0:02:53.3]} 6... Bg7 {[%clk 0:02:53.4]}
7. Bd3 {[%clk 0:02:39.8]} 7... Nxc3 {[%clk 0:02:51.2]} 8. bxc3 {[%clk
0:02:40.6]} 8... dxc4 {[%clk 0:02:51.2]} 9. Bxc4 {[%clk 0:02:41.4]} 9... O-O
{[%clk 0:02:51.1]} 10. Nf3 {[%clk 0:02:42.5]} 10... Nd7 {[%clk 0:02:51.6]} 11.
O-O {[%clk 0:02:42.3]} 11... Nf6 {[%clk 0:02:48.1]} 12. Rc1 {[%clk 0:02:25.7]}
12... Bf5 {[%clk 0:02:45.7]} 13. h3 {[%clk 0:02:22.9]} 13... b5 {[%clk
0:02:33.7]} 14. Bb3 {[%clk 0:02:21.7]} 14... a5 {[%clk 0:02:32.4]} 15. a3 {[%clk
0:02:22.6]} 15... a4 {[%clk 0:02:30]} 16. Ba2 {[%clk 0:02:23.4]} 16... e6 {[%clk
0:02:27.2]} 17. Ne5 {[%clk 0:02:20.5]} 17... Rc8 {[%clk 0:02:12.7]} 18. c4
{[%clk 0:02:20.3]} 18... Qe7 {[%clk 0:02:10.6]} 19. c5 {[%clk 0:02:09.7]} 19...
Be4 {[%clk 0:02:05.1]} 20. Nd3 {[%clk 0:01:56.9]} 20... Qb7 {[%clk 0:01:46.2]}
21. Nb4 {[%clk 0:01:55.5]} 21... Nd5 {[%clk 0:01:42.2]} 22. Bxd5 {[%clk
0:01:56.1]} 22... Bxd5 {[%clk 0:01:38.5]} 23. Qg4 {[%clk 0:01:54.3]} 23... Rfe8
{[%clk 0:01:35.5]} 24. Be5 {[%clk 0:01:42.4]} 24... f6 {[%clk 0:01:31.6]} 25.
Bd6 {[%clk 0:01:43.5]} 25... Bc4 {[%clk 0:01:28.2]} 26. Rfd1 {[%clk 0:01:42.1]}
26... Qf7 {[%clk 0:01:29.3]} 27. Qf3 {[%clk 0:01:41.2]} 27... Qd7 {[%clk
0:01:15.5]} 28. e4 {[%clk 0:01:40.6]} 28... f5 {[%clk 0:01:10.3]} 29. e5 {[%clk
0:01:38.9]} 29... Bb3 {[%clk 0:01:06.8]} 30. Rd3 {[%clk 0:01:38.9]} 30... Bh6
{[%clk 0:01:03.3]} 31. Rb1 {[%clk 0:01:33.5]} 31... Bd5 {[%clk 0:00:58.1]} 32.
Nxd5 {[%clk 0:01:33.4]} 32... exd5 {[%clk 0:00:59.7]} 33. Qg3 {[%clk 0:01:33.8]}
33... f4 {[%clk 0:00:57.2]} 34. Qg4 {[%clk 0:01:33.1]} 34... Qxg4 {[%clk
0:00:54.8]} 35. hxg4 {[%clk 0:01:35]} 35... Ra8 {[%clk 0:00:52.5]} 36. Kf1
{[%clk 0:01:33]} 36... Bg5 {[%clk 0:00:49.4]} 37. Ke2 {[%clk 0:01:33.1]} 37...
Bd8 {[%clk 0:00:46.9]} 38. Rf3 {[%clk 0:01:29.6]} 38... g5 {[%clk 0:00:47.8]}
39. Rh3 {[%clk 0:01:30.6]} 39... Re6 {[%clk 0:00:41.7]} 40. Kd2 {[%clk
0:01:19.5]} 40... Kg7 {[%clk 0:00:38.7]} 41. Rbh1 {[%clk 0:01:17.5]} 41... h6
{[%clk 0:00:36.5]} 42. Kc2 {[%clk 0:01:18.8]} 42... Ba5 {[%clk 0:00:37.1]} 43.
Rb1 {[%clk 0:01:15.8]} 43... Ree8 {[%clk 0:00:36.6]} 44. Kb2 {[%clk 0:01:05.3]}
44... Ra7 {[%clk 0:00:37.7]} 45. Kc2 {[%clk 0:01:05.4]} 45... Rb7 {[%clk
0:00:39.1]} 46. Rhh1 {[%clk 0:00:45.1]} 46... Re6 {[%clk 0:00:35.9]} 47. Kd3
{[%clk 0:00:41.6]} 47... Re8 {[%clk 0:00:37]} 48. Rb2 {[%clk 0:00:41.3]} 48...
Re6 {[%clk 0:00:37.8]} 49. Ke2 {[%clk 0:00:38.8]} 49... Re8 {[%clk 0:00:39.2]}
50. Rhb1 {[%clk 0:00:39.8]} 50... Re6 {[%clk 0:00:40.4]} 51. Kd3 {[%clk
0:00:39]} 51... Re8 {[%clk 0:00:41.3]} 52. Rf1 {[%clk 0:00:36.5]} 52... Rf7
{[%clk 0:00:40.3]} 53. Rbb1 {[%clk 0:00:35.9]} 53... Re6 {[%clk 0:00:38.1]} 54.
Kc2 {[%clk 0:00:32.6]} 54... Re8 {[%clk 0:00:39.4]} 55. f3 {[%clk 0:00:34]}
55... Re6 {[%clk 0:00:40.5]} 56. Rg1 {[%clk 0:00:34.1]} 56... Re8 {[%clk
0:00:41.6]} 57. Kd3 {[%clk 0:00:33.8]} 57... Re6 {[%clk 0:00:42.9]} 58. g3
{[%clk 0:00:34.9]} 58... Re8 {[%clk 0:00:44.1]} 59. gxf4 {[%clk 0:00:33.4]}
59... Rxf4 {[%clk 0:00:46]} 60. Rg3 {[%clk 0:00:33.4]} 60... Re6 {[%clk
0:00:47.1]} 61. Rh3 {[%clk 0:00:34.3]} 61... Rf7 {[%clk 0:00:48.2]} 62. Ke3
{[%clk 0:00:30.9]} 62... Rf4 {[%clk 0:00:49.3]} 63. Kd3 {[%clk 0:00:27.5]} 63...
Rf7 {[%clk 0:00:49.8]} 64. Rf1 {[%clk 0:00:27]} 64... Rf4 {[%clk 0:00:50.3]} 65.
Rfh1 {[%clk 0:00:28.2]} 65... Rf7 {[%clk 0:00:50.9]} 66. Rf1 {[%clk 0:00:19.4]}
66... Rf4 {[%clk 0:00:51.6]} 67. Ke3 {[%clk 0:00:20.7]} 67... Bc3 {[%clk
0:00:50.5]} 68. Rd1 {[%clk 0:00:20.6]} 68... Bb2 {[%clk 0:00:51.7]} 69. Rd3
{[%clk 0:00:21]} 69... Bc1+ {[%clk 0:00:48.5]} 70. Ke2 {[%clk 0:00:21.8]} 70...
Bb2 {[%clk 0:00:48.1]} 71. Ke3 {[%clk 0:00:22]} 71... Bc1+ {[%clk 0:00:49.5]}
72. Ke2 {[%clk 0:00:23.5]} 72... Bb2 {[%clk 0:00:51]} 73. Ke3 {[%clk 0:00:23.9]}
73... Bc1+ {[%clk 0:00:52.5]} 74. Ke2 {[%clk 0:00:25.4]} 74... Bb2 {[%clk
0:00:53.9]} 1/2-1/2